[Event "Tata Steel India Women Rapid 2024"]
[Site "Kolkata"]
[Date "2024.11.14"]
[Round "4.5"]
[White "Dzagnidze, Nana"]
[Black "Vaishali, Rameshbabu"]
[Result "1-0"]
[ECO "E32"]
[WhiteElo "2518"]
[BlackElo "2490"]
[Annotator "TA"]
[PlyCount "47"]
[EventDate "2024.11.06"]
[EventType "tourn"]
[EventCountry "IND"]
[SourceTitle "playchess.com"]
[Source "ChessBase"]
[SourceQuality "1"]
[TimeControl "1500+10"]

{[%evp 13,47,12,8,0,0,0,0,0,0,0,26,0,178,170,170,164,267,243,271,245,342,353,340,334,429,434,514,511,510,503,545,529,696,694,658,588]} 1. d4 {[%emt 0:00:03]} Nf6 {[%emt 0:00:02]} 2. c4 {[%emt 0:00:02]} e6 {[%emt 0:00:02]} 3. Nc3 {[%emt 0:01:13]} Bb4 {[%emt 0:00:02]} 4. Qc2 {[%emt 0:00:06]} O-O {[%emt 0:00:20]} 5. Bg5 {[%emt 0:01:01]} h6 {[%emt 0:00:23]} 6. Bh4 {[%emt 0:00:03]} c5 {[%emt 0:00:10]} 7. dxc5 {[%emt 0:00:38]} Na6 {[%emt 0:01:43]} 8. a3 {[%emt 0:00:11]} Bxc3+ {[%emt 0:03:15]} 9. Qxc3 {[%emt 0:00:01]} g5 {[%emt 0:00:04][%cal Of6e4]} 10. Bg3 {[%emt 0:00:10] Hoping for b4. The position is equal.} Ne4 $1 {[%emt 0:00:03]} 11. Qd4 {[%emt 0:03:31]} f5 {[%emt 0:07:24]} (11... Naxc5 $5 12. b4 d5 $11) 12. Bd6 {[%emt 0:06:23]} (12. f3 $5 Naxc5 13. fxe4 $14) 12... b6 $2 {[%emt 0:05:16]} 13. Bxf8 $18 {[%emt 0:01:02]} Qxf8 {[%emt 0:00:02]} 14. cxb6 {[%emt 0:00:02]} Nac5 {[%emt 0:00:16] [#]} (14... Nb4 $142 15. Rc1 (15. axb4 Qxb4+ 16. Kd1 Nxf2+ 17. Kc2 Bb7 $11) 15... Nc6) 15. Rd1 $1 {[%emt 0:00:48]} ({Worse is} 15. bxa7 Nb3 16. Qd1 Qc5 17. Qxb3 (17. e3 $2 Qa5+ 18. Ke2 Ba6 $19) 17... Qxf2+ (17... Nxf2 $2 {perishes.} 18. Qf3 $18) 18. Kd1 Qxf1+ 19. Kc2 Qxa1 $11) 15... axb6 {[%emt 0:01:10]} 16. f3 {[%emt 0:01:08]} Nf6 {[%emt 0:00:16]} 17. e3 {[%emt 0:00:11]} Bb7 {[%emt 0:00:43]} 18. Ne2 {[%emt 0:02:03]} d5 {[%emt 0:01:21]} 19. Nc3 {[%emt 0:00:55] White is clearly winning.} e5 {[%emt 0:00:14]} 20. Qxe5 {[%emt 0:00:18]} Re8 {[%emt 0:00:02]} 21. Qxf5 {[%emt 0:00:27]} Rxe3+ {[%emt 0:00:08] [#]} 22. Be2 $1 {[%emt 0:00:02]} Bc8 {[%emt 0:00:40]} 23. Qg6+ {[%emt 0:00:09]} Kh8 {[%emt 0:00:02]} 24. O-O {[%emt 0:00:17] Black did not feel at home in the position after the opening.   Weighted Error Value: White=0.04 (flawless) /Black=0.57.  Loses game:     	---       	Black=1      Mistake:       	---       	Black=1      Inaccurate:     	White=1     	Black=3      OK:         	White=7     	Black=5      Best:        	White=2     	---        Strong:       	White=2     	Black=1} 1-0

[Event "Tata Steel India Women Rapid 2024"]
[Site "Kolkata"]
[Date "2024.11.14"]
[Round "5.1"]
[White "Vaishali, Rameshbabu"]
[Black "Goryachkina, Aleksandra"]
[Result "0-1"]
[ECO "C67"]
[WhiteElo "2490"]
[BlackElo "2528"]
[Annotator "RC"]
[PlyCount "114"]
[EventDate "2024.11.06"]
[EventType "tourn"]
[EventCountry "IND"]
[SourceTitle "playchess.com"]
[Source "ChessBase"]
[SourceQuality "1"]
[TimeControl "1500+10"]

1. e4 {[%emt 0:00:03]} e5 {[%emt 0:00:03]} 2. Nf3 {[%emt 0:00:02]} Nc6 {[%emt 0:00:03]} 3. Bb5 {[%emt 0:00:02]} Nf6 {[%emt 0:00:04]} 4. O-O {[%emt 0:00:03]} Nxe4 {[%emt 0:00:07]} 5. Re1 {[%emt 0:00:03]} Nd6 {[%emt 0:00:05]} 6. Nxe5 {[%emt 0:00:07]} Be7 {[%emt 0:00:11]} 7. Bf1 {[%emt 0:00:06]} Nxe5 {[%emt 0:00:04]} 8. Rxe5 {[%emt 0:00:03]} O-O {[%emt 0:00:06]} 9. d4 {[%emt 0:00:07]} Bf6 {[%emt 0:00:07]} 10. Re1 {[%emt 0:00:03]} Re8 {[%emt 0:00:04]} 11. c3 {[%emt 0:00:04]} Rxe1 {[%emt 0:00:25]} 12. Qxe1 {[%emt 0:00:03]} Ne8 {[%emt 0:00:13]} 13. a4 {[%emt 0:00:17]} d5 {[%emt 0:01:50]} 14. a5 {[%emt 0:00:16]} Be7 {[%emt 0:00:56]} 15. Nd2 {[%emt 0:00:52]} a6 {[%emt 0:01:46]} 16. Nf3 {[%emt 0:00:22]} Bf5 {[%emt 0:00:20]} 17. Bf4 {[%emt 0:00:46]} Bd6 {[%emt 0:01:36]} 18. Qe3 {[%emt 0:00:49]} Bxf4 {[%emt 0:01:30]} 19. Qxf4 {[%emt 0:00:03]} Be4 {[%emt 0:00:10]} 20. Ne5 {[%emt 0:02:15]} Qf6 {[%emt 0:03:29]} 21. Qxf6 {[%emt 0:01:26]} Nxf6 {[%emt 0:00:17]} 22. f3 {[%emt 0:00:03]} Bg6 {[%emt 0:00:59]} 23. Ra4 {[%emt 0:00:48]} Ne8 {[%emt 0:01:23]} 24. Rb4 {[%emt 0:00:20]} Nd6 {[%emt 0:00:03]} 25. Nd7 {[%emt 0:00:14]} Bf5 {[%emt 0:01:48]} 26. Nc5 {[%emt 0:00:05]} Bc8 {[%emt 0:00:02]} 27. b3 {[%emt 0:04:52]} Kf8 {[%emt 0:00:40]} 28. c4 {[%emt 0:03:14]} b6 {[%emt 0:02:19]} 29. axb6 {[%emt 0:00:27]} a5 {[%emt 0:00:13]} 30. b7 {[%emt 0:00:13]} Bxb7 {[%emt 0:00:36]} 31. Rxb7 {[%emt 0:02:11]} Nxb7 {[%emt 0:00:02]} 32. Nxb7 {[%emt 0:00:02]} dxc4 {[%emt 0:00:16]} 33. Bxc4 {[%emt 0:00:16]} a4 {[%emt 0:00:04]} 34. bxa4 {[%emt 0:00:20]} Rxa4 {[%emt 0:00:03]} 35. Be2 {[%emt 0:00:25]} Rxd4 {[%emt 0:00:07]} 36. Na5 {[%emt 0:00:15]} Rd2 {[%emt 0:01:01]} 37. Kf2 {[%emt 0:00:07]} Ke7 {[%emt 0:00:03]} 38. Ke3 {[%emt 0:00:07]} Ra2 {[%emt 0:01:12]} 39. Nc4 {[%emt 0:03:07]} Ke6 {[%emt 0:00:22]} 40. Nd2 {[%emt 0:00:21]} Ra3+ {[%emt 0:00:43]} 41. Kd4 {[%emt 0:00:08]} f5 {[%emt 0:00:58]} 42. f4 {[%emt 0:00:32]} Kf6 {[%emt 0:00:15]} 43. Nc4 {[%emt 0:00:45]} Ra2 {[%emt 0:00:17]} 44. Bf3 {[%emt 0:00:06]} h6 {[%emt 0:00:37]} 45. Ne3 {[%emt 0:00:38]} Ra4+ {[%emt 0:01:03]} 46. Kc5 {[%emt 0:00:26]} g5 {[%emt 0:00:57]} 47. Bc6 {[%emt 0:03:19]} Ra5+ {[%emt 0:00:52]} 48. Kb4 {[%emt 0:00:27]} Ra2 {[%emt 0:00:05]} 49. fxg5+ {[%emt 0:01:06]} hxg5 {[%emt 0:00:08]} 50. Bd7 {[%emt 0:00:24]} Re2 {[%emt 0:00:19]} 51. Nxf5 {[%emt 0:00:15]} Rd2 {[%emt 0:00:22]} 52. Bc8 {[%emt 0:00:12]} Rd8 {[%emt 0:00:07]} 53. Bb7 {[%emt 0:00:11]} Kxf5 {[%emt 0:00:18]} 54. Kc5 {[%emt 0:00:06]} Rd2 {[%emt 0:00:09]} 55. h3 {[%emt 0:00:06]} Kf4 {[%emt 0:00:11]} 56. Bf3 {[%emt 0:00:08]} Kg3 {[%emt 0:00:09]} 57. Kc6 {[%emt 0:00:08]} Rxg2 {[%emt 0:00:15]} 0-1

[Event "Tata Steel India Women Rapid 2024"]
[Site "Kolkata"]
[Date "2024.11.14"]
[Round "5.2"]
[White "Koneru, Humpy"]
[Black "Kosteniuk, Alexandra"]
[Result "1/2-1/2"]
[ECO "D24"]
[WhiteElo "2530"]
[BlackElo "2487"]
[Annotator "TA"]
[PlyCount "155"]
[EventDate "2024.11.06"]
[EventType "tourn"]
[EventCountry "IND"]
[SourceTitle "playchess.com"]
[Source "ChessBase"]
[SourceQuality "1"]
[TimeControl "1500+10"]

{[%evp 99,154,0,8,8,8,0,8,0,8,8,8,0,0,0,0,0,0,0,0,0,0,0,8,0,8,8,8,8,8,8,8,8,8,8,8,0,0,0,0,0,0,0,0,0,0,0,0,0,0,0,0,0,0,0,0,0,0]} 1. Nf3 {[%emt 0:00:02]} d5 {[%emt 0:00:03]} 2. d4 {[%emt 0:00:04]} Nf6 {[%emt 0:00:06]} 3. c4 {[%emt 0:00:04]} e6 {[%emt 0:00:03]} 4. Nc3 {[%emt 0:00:04]} dxc4 {[%emt 0:00:03]} 5. e4 {[%emt 0:00:09]} b5 {[%emt 0:00:01]} 6. e5 {[%emt 0:00:13] D24: Queen's Gambit Accepted: 3 Nf3 Nf6 4 Nc3.} Nd5 {[%emt 0:00:02]} 7. Nxb5 {[%emt 0:00:04]} Nb6 {[%emt 0:00:03]} 8. Be2 {[%emt 0:00:12]} Be7 {[%emt 0:00:06]} 9. Be3 {[%emt 0:00:18]} (9. O-O O-O 10. Be3 Nc6 11. Rc1 Ba6 12. Nc3 Nb4 13. b3 N4d5 14. Bd2 Ba3 15. Rb1 Nxc3 16. Bxc3 Be7 17. Nd2 Qd5 18. Bf3 Qd7 19. Bxa8 cxb3 20. Bf3 Bxf1 21. Qxf1 bxa2 22. Ra1 Na4 23. Qc4 Rb8 24. Rxa2 Nxc3 25. Qxc3 Bb4 26. Qc1 a5 27. h3 h6 28. Qc4 c5 29. Nb3 cxd4 30. Nxd4 Rc8 31. Nc6 g6 32. Qe4 Kg7 33. Nxb4 Rc1+ 34. Kh2 axb4 35. Qxb4 Qc7 36. Qf4 Rc4 37. Qe3 Rc5 38. Re2 Rc3 {1-0 Koneru,H (2553)-Kosteniuk,A (2546) Hengshui IMSA blitz (Women) 2019 (6)}) 9... Nc6 {[%emt 0:00:06]} 10. a3 {[%emt 0:00:06]} Na5 {[%emt 0:00:21]} 11. Qc2 {[%emt 0:00:15]} Bb7 {[%emt 0:00:22]} 12. Rd1 {[%emt 0:00:37]} Qd7 {[%emt 0:00:39]} 13. Nc3 {[%emt 0:00:03]} O-O-O {[%emt 0:00:44]} 14. O-O {[%emt 0:01:13]} f5 {[%emt 0:01:50]} 15. exf6 {[%emt 0:03:28]} gxf6 {[%emt 0:00:02]} 16. Nd2 {[%emt 0:00:20]} Rdg8 {[%emt 0:06:20]} 17. Bf3 {[%emt 0:01:07]} Bxf3 {[%emt 0:00:05]} 18. Nxf3 {[%emt 0:00:02]} Nb3 {[%emt 0:00:03]} 19. g3 {[%emt 0:02:07]} c6 {[%emt 0:03:30]} 20. Ne4 {[%emt 0:04:40]} Qd5 {[%emt 0:00:13]} 21. Nfd2 {[%emt 0:00:26]} Nxd2 {[%emt 0:01:31]} 22. Nxd2 {[%emt 0:07:07]} h5 {[%emt 0:00:02]} 23. Rc1 {[%emt 0:03:49]} h4 {[%emt 0:00:02]} 24. Nxc4 {[%emt 0:00:08]} hxg3 {[%emt 0:00:30]} 25. Nxb6+ {[%emt 0:00:01]} axb6 {[%emt 0:00:04]} 26. Qxc6+ {[%emt 0:00:04]} Qxc6 {[%emt 0:00:07]} 27. Rxc6+ {[%emt 0:00:02]} Kd7 {[%emt 0:00:02]} 28. Rxb6 {[%emt 0:00:05]} gxh2+ {[%emt 0:07:15]} 29. Kh1 {[%emt 0:00:02]} Bd6 {[%emt 0:02:21]} 30. a4 {[%emt 0:00:02]} Rb8 {[%emt 0:03:34]} 31. Rxb8 {[%emt 0:00:38]} Rxb8 {[%emt 0:00:00]} 32. Rb1 {[%emt 0:00:22]} Kc6 {[%emt 0:00:00]} 33. b3 {[%emt 0:00:47]} f5 {[%emt 0:00:00]} 34. f4 {[%emt 0:00:30]} Kd5 {[%emt 0:00:00]} 35. Kxh2 {[%emt 0:00:35]} Ke4 {[%emt 0:00:00]} 36. Bd2 {[%emt 0:00:29]} Kd3 {[%emt 0:00:04]} 37. Rb2 {[%emt 0:00:02]} Ba3 {[%emt 0:00:09]} 38. Ra2 {[%emt 0:00:04]} Rxb3 {[%emt 0:00:01]} 39. a5 {[%emt 0:00:08]} Bb2 {[%emt 0:00:02]} 40. a6 {[%emt 0:00:26]} Bxd4 {[%emt 0:00:01]} 41. Be1 {[%emt 0:00:43]} Ba7 {[%emt 0:00:29]} 42. Kg2 {[%emt 0:00:05]} Rb8 {[%emt 0:00:34]} 43. Bf2 {[%emt 0:00:05]} Bxf2 {[%emt 0:00:21]} 44. Kxf2 {[%emt 0:00:02]} Ke4 {[%emt 0:00:22]} 45. a7 {[%emt 0:00:21]} Ra8 {[%emt 0:00:01]} 46. Ra4+ {[%emt 0:00:03]} Kd5 {[%emt 0:00:36]} 47. Ke3 Kc5 {[%emt 0:00:00]} 48. Ra1 {[%emt 0:00:18]} Kd5 {[%emt 0:00:00]} 49. Kd3 {[%emt 0:00:26]} Kc5 {[%emt 0:00:01]} 50. Ra2 {[%emt 0:00:06]} Rd8+ {[%emt 0:00:14]} 51. Ke3 {[%emt 0:00:18]} Ra8 {[%emt 0:00:02]} 52. Ra3 {[%emt 0:00:10]} Kd5 {[%emt 0:00:21]} 53. Ra5+ {[%emt 0:00:06]} Kc4 {[%emt 0:00:02]} 54. Ra6 $1 {[%emt 0:00:18]} Kd5 {[%emt 0:00:16]} 55. Kd3 {[%emt 0:00:08]} Kc5 {[%emt 0:00:00]} 56. Kc3 {[%emt 0:00:04]} Kd5 {[%emt 0:00:21]} ({But not} 56... Kb5 $2 57. Rxe6 Rxa7 58. Kd4 $18) 57. Ra4 {[%emt 0:00:20]} (57. Kb4 $5 Ke4 $8 58. Rxe6+ Kxf4 59. Ra6 $11) 57... Kc5 {[%emt 0:00:17]} 58. Kd3 {[%emt 0:00:02]} Rd8+ {[%emt 0:00:10]} ({Don't go for} 58... Kb6 $2 59. Kd4 $18) 59. Ke3 {[%emt 0:00:04]} Ra8 {[%emt 0:00:01]} 60. Ra1 {[%emt 0:00:04]} Kd5 {[%emt 0:00:04]} ({Wrong is} 60... Kb6 $2 61. Kd4 $18) 61. Kf3 {[%emt 0:00:03]} Kc5 {[%emt 0:00:05]} 62. Ra6 {[%emt 0:00:13]} Kb5 {[%emt 0:00:15]} 63. Rxe6 {[%emt 0:00:06]} Rxa7 {[%emt 0:00:00]} 64. Re5+ {[%emt 0:00:08]} Kc6 {[%emt 0:00:01]} 65. Rxf5 {[%emt 0:00:52]} Kd6 66. Re5 {[%emt 0:00:00]} Re7 {[%emt 0:00:04]} 67. Rxe7 {[%emt 0:00:00]} Kxe7 {[%emt 0:00:00]} 68. Kg4 {[%emt 0:00:00]} Kf6 {[%emt 0:00:02]} 69. f5 {[%emt 0:00:00]} Kf7 {[%emt 0:00:00]} 70. Kg5 $1 {[%emt 0:00:00]} Kg7 {[%emt 0:00:01]} 71. Kg4 {[%emt 0:00:00]} Kf6 {[%emt 0:00:01]} 72. Kf4 {[%emt 0:00:00]} Kf7 {[%emt 0:00:01]} 73. Ke5 {[%emt 0:00:00]} Ke7 {[%emt 0:00:00]} 74. f6+ {[%emt 0:01:30]} Kf7 75. Kf5 {[%emt 0:00:00]} Kf8 {[%emt 0:00:01]} 76. Ke6 {[%emt 0:00:00]} (76. Kg6 $5 Kg8 $8 77. Kg5 $11) 76... Ke8 {[%emt 0:00:01]} 77. f7+ {[%emt 0:00:00]} Kf8 {[%emt 0:00:00]} 78. Kf6 $146 {[%emt 0:00:00]} ({Predecessor:} 78. Ke5 Kxf7 {½-½ Deac,B (2691)-Tabatabaei,M (2702) ESP-chT CECLUB Honor 2024 (2.7)}) 1/2-1/2

[Event "Tata Steel India Women Rapid 2024"]
[Site "Kolkata"]
[Date "2024.11.14"]
[Round "5.3"]
[White "Lagno, Kateryna"]
[Black "Dzagnidze, Nana"]
[Result "1/2-1/2"]
[ECO "C01"]
[WhiteElo "2527"]
[BlackElo "2518"]
[Annotator "TA"]
[PlyCount "56"]
[EventDate "2024.11.06"]
[EventType "tourn"]
[EventCountry "IND"]
[SourceTitle "playchess.com"]
[Source "ChessBase"]
[SourceQuality "1"]
[TimeControl "1500+10"]

{[%evp 14,56,7,10,0,9,10,19,20,22,5,12,44,12,0,0,6,0,0,0,22,0,0,0,0,0,0,0,0,0,0,0,0,0,0,0,0,0,0,0,0,0,0,0,0]} 1. e4 {[%emt 0:00:01]} e6 {[%emt 0:00:05]} 2. d4 {[%emt 0:00:38]} d5 {[%emt 0:00:04]} 3. exd5 {[%emt 0:00:03]} exd5 {[%emt 0:00:02]} 4. Bd3 {[%emt 0:00:01]} Nf6 {[%emt 0:00:07]} 5. Nf3 {[%emt 0:00:43]} Bd6 {[%emt 0:00:08]} 6. O-O {[%emt 0:00:04]} O-O {[%emt 0:00:06]} 7. h3 {[%emt 0:00:07]} h6 {[%emt 0:00:51]} 8. Nc3 {[%emt 0:00:05]} a6 {[%emt 0:01:01]} 9. Ne2 {[%emt 0:01:38]} Nc6 {[%emt 0:01:05]} 10. c3 {[%emt 0:01:12]} Re8 {[%emt 0:03:08]} 11. Qc2 {[%emt 0:01:54]} Bd7 {[%emt 0:01:58]} 12. Ng3 {[%emt 0:00:54]} Qe7 {[%emt 0:02:07]} 13. Nh4 {[%emt 0:06:16]} Bxg3 {[%emt 0:06:50] The position is equal.} 14. fxg3 {[%emt 0:00:02]} Ne4 {[%emt 0:00:00]} 15. Bxe4 {[%emt 0:00:29]} Qxe4 {[%emt 0:01:08]} 16. Qf2 {[%emt 0:00:03]} f6 {[%emt 0:01:34]} 17. g4 {[%emt 0:03:56]} Qd3 {[%emt 0:00:27]} 18. Nf5 {[%emt 0:06:05]} Re2 {[%emt 0:03:42]} 19. Nxh6+ {[%emt 0:00:19]} gxh6 {[%emt 0:00:05]} 20. Qxf6 {[%emt 0:00:02]} Qc2 {[%emt 0:02:33]} 21. Qf7+ {[%emt 0:00:25]} (21. Qxh6 $2 Rxg2+ 22. Kh1 Rh2+ 23. Kg1 Qg2#) 21... Kh8 {[%emt 0:00:01]} 22. Qf6+ {[%emt 0:01:21]} (22. Qxd7 $2 Rxg2+ 23. Kh1 Rh2+ 24. Kg1 Qg2#) 22... Kg8 {[%emt 0:00:01]} 23. Qf7+ {[%emt 0:00:01]} (23. Qxh6 $2 Rxg2+ 24. Kh1 Rh2+ 25. Kg1 Qg2#) 23... Kh8 {[%emt 0:00:01]} 24. Qxd5 {[%emt 0:00:42][%cal Oc1h6]} (24. Qxd7 $2 Rxg2+ 25. Kh1 Rh2+ 26. Kg1 Qg2#) 24... Ne7 {[%emt 0:00:04]} (24... Ne5 $5 25. Bf4 $8 (25. dxe5 Bc6) 25... Ng6 26. Qxb7 (26. Qxd7 {leads to mate.} Rxg2+ 27. Kh1 Nxf4) 26... Rae8 27. Bxc7 Nh4 (27... Qxb2 28. Qxb2 Rxb2 29. Rab1 $11) 28. Be5+ Kg8 $11 (28... R8xe5 29. dxe5 Rxg2+ 30. Kh1 $19)) 25. Qf3 {[%emt 0:00:12]} (25. Qxd7 $2 {gets mated.} Rxg2+ 26. Kh1 Rh2+ 27. Kg1 Qg2#) 25... Bc6 {[%emt 0:00:03]} 26. Qf6+ {[%emt 0:00:13]} Kg8 {[%emt 0:00:01]} 27. Qf7+ {[%emt 0:00:02]} Kh8 {[%emt 0:00:01]} 28. Qf6+ {[%emt 0:00:03]} Kg8 {[%emt 0:00:03] An uneventful encounter.   Weighted Error Value: White=0.03 (flawless) /Black=0.04 (flawless) .  Inaccurate:     	White=1     	Black=1      OK:         	White=10    	Black=8      Best:        	White=2     	Black=1} 1/2-1/2

[Event "Tata Steel India Women Rapid 2024"]
[Site "Kolkata"]
[Date "2024.11.14"]
[Round "5.4"]
[White "Divya Deshmukh"]
[Black "Gunina, Valentina"]
[Result "0-1"]
[ECO "B30"]
[WhiteElo "2493"]
[BlackElo "2425"]
[Annotator "RC"]
[PlyCount "104"]
[EventDate "2024.11.06"]
[EventType "tourn"]
[EventCountry "IND"]
[SourceTitle "playchess.com"]
[Source "ChessBase"]
[SourceQuality "1"]
[TimeControl "1500+10"]

1. e4 {[%emt 0:00:03]} c5 {[%emt 0:00:02]} 2. Nf3 {[%emt 0:00:02]} Nc6 {[%emt 0:00:01]} 3. Bb5 {[%emt 0:00:01]} e6 {[%emt 0:00:02]} 4. O-O {[%emt 0:00:02]} Nge7 {[%emt 0:00:02]} 5. d4 {[%emt 0:00:02]} cxd4 {[%emt 0:00:03]} 6. Nxd4 {[%emt 0:00:01]} Qb6 {[%emt 0:00:02]} 7. Nxc6 {[%emt 0:00:02]} bxc6 {[%emt 0:00:03]} 8. Be2 {[%emt 0:00:02]} Ng6 {[%emt 0:00:31]} 9. c4 {[%emt 0:00:02]} Be7 {[%emt 0:00:30]} 10. Nc3 {[%emt 0:00:02]} O-O {[%emt 0:00:02]} 11. Na4 {[%emt 0:00:01]} Qc7 {[%emt 0:00:09]} 12. c5 {[%emt 0:00:01]} d5 {[%emt 0:00:40]} 13. cxd6 {[%emt 0:00:02]} Bxd6 {[%emt 0:00:02]} 14. g3 {[%emt 0:00:01]} e5 {[%emt 0:00:44]} 15. Qd3 {[%emt 0:00:02]} Bh3 {[%emt 0:00:36]} 16. Rd1 {[%emt 0:00:05]} Rad8 {[%emt 0:00:58]} 17. Be3 {[%emt 0:00:15]} Bc5 {[%emt 0:00:19]} 18. Qc3 {[%emt 0:00:20]} Bxe3 {[%emt 0:00:05]} 19. Qxe3 {[%emt 0:00:59]} Qa5 {[%emt 0:00:17]} 20. b3 {[%emt 0:00:28]} Qb4 {[%emt 0:00:27]} 21. Bc4 {[%emt 0:00:43]} Qe7 {[%emt 0:03:03]} 22. Bf1 {[%emt 0:02:05]} Bxf1 {[%emt 0:00:24]} 23. Kxf1 {[%emt 0:00:01]} Qe6 {[%emt 0:00:13]} 24. Qxa7 {[%emt 0:05:20]} Qh3+ {[%emt 0:00:04]} 25. Ke2 {[%emt 0:00:13]} Qh5+ {[%emt 0:00:44]} 26. f3 {[%emt 0:00:27]} Rd4 {[%emt 0:00:02]} 27. Rxd4 {[%emt 0:02:52]} Qxh2+ {[%emt 0:00:08]} 28. Kd3 {[%emt 0:00:31]} exd4 {[%emt 0:00:05]} 29. Qxd4 {[%emt 0:00:08]} Qxg3 {[%emt 0:00:03]} 30. Rf1 {[%emt 0:00:11]} Nf4+ {[%emt 0:01:35]} 31. Kc2 {[%emt 0:00:44]} Ne6 {[%emt 0:00:15]} 32. Qf2 {[%emt 0:01:03]} Qe5 {[%emt 0:00:29]} 33. Kb1 {[%emt 0:00:10]} h5 {[%emt 0:00:24]} 34. Rc1 {[%emt 0:00:38]} Qf4 {[%emt 0:01:28]} 35. Nc5 {[%emt 0:01:50]} Nxc5 {[%emt 0:00:10]} 36. Qxc5 {[%emt 0:02:21]} Qxf3 {[%emt 0:00:03]} 37. Qxc6 {[%emt 0:00:50]} Rd8 {[%emt 0:00:02]} 38. Qc4 {[%emt 0:02:23]} h4 {[%emt 0:00:03]} 39. Kb2 {[%emt 0:01:49]} h3 {[%emt 0:00:13]} 40. Rf1 {[%emt 0:00:19]} Qg2+ {[%emt 0:00:15]} 41. Ka1 {[%emt 0:01:30]} Rf8 {[%emt 0:00:07]} 42. Qc1 {[%emt 0:02:04]} Qxe4 {[%emt 0:00:06]} 43. Rh1 {[%emt 0:00:40]} Qg2 {[%emt 0:02:22]} 44. Rg1 {[%emt 0:00:06]} Qd5 {[%emt 0:01:00]} 45. Qc3 {[%emt 0:00:04]} g6 {[%emt 0:00:02]} 46. Qb2 {[%emt 0:00:58]} Re8 {[%emt 0:00:04]} 47. a4 {[%emt 0:00:12]} h2 {[%emt 0:01:09]} 48. Qxh2 {[%emt 0:00:05]} Qxb3 {[%emt 0:00:02]} 49. Qa2 {[%emt 0:00:10]} Qc3+ {[%emt 0:00:13]} 50. Qb2 {[%emt 0:00:01]} Qc4 {[%emt 0:00:06]} 51. Qb5 {[%emt 0:00:21]} Qd4+ {[%emt 0:00:02]} 52. Kb1 {[%emt 0:00:15]} Qxg1+ {[%emt 0:00:04]} 0-1

[Event "Tata Steel India Women Rapid 2024"]
[Site "Kolkata"]
[Date "2024.11.14"]
[Round "5.5"]
[White "Vantika Agrawal"]
[Black "Dronavalli, Harika"]
[Result "1/2-1/2"]
[ECO "D94"]
[WhiteElo "2392"]
[BlackElo "2493"]
[Annotator "RC"]
[PlyCount "165"]
[EventDate "2024.11.06"]
[EventType "tourn"]
[EventCountry "IND"]
[SourceTitle "playchess.com"]
[Source "ChessBase"]
[SourceQuality "1"]
[TimeControl "1500+10"]

1. d4 {[%emt 0:00:10]} d5 {[%emt 0:00:02]} 2. c4 {[%emt 0:00:01]} c6 {[%emt 0:00:01]} 3. Nf3 {[%emt 0:00:41]} Nf6 {[%emt 0:00:03]} 4. e3 {[%emt 0:00:02]} g6 {[%emt 0:00:02]} 5. Nc3 {[%emt 0:00:11]} Bg7 {[%emt 0:00:01]} 6. Be2 {[%emt 0:00:04]} O-O {[%emt 0:00:07]} 7. O-O {[%emt 0:00:05]} Bg4 {[%emt 0:00:02]} 8. cxd5 {[%emt 0:00:31]} cxd5 {[%emt 0:00:02]} 9. Qb3 {[%emt 0:00:07]} b6 {[%emt 0:00:02]} 10. h3 {[%emt 0:02:52]} Bc8 {[%emt 0:00:02]} 11. Bd2 {[%emt 0:01:37]} Nc6 {[%emt 0:00:08]} 12. Rfc1 {[%emt 0:00:58]} Na5 {[%emt 0:02:47]} 13. Qd1 {[%emt 0:03:14]} Bb7 {[%emt 0:01:15]} 14. b4 {[%emt 0:01:51]} Nc6 {[%emt 0:02:46]} 15. b5 {[%emt 0:01:15]} Nb8 {[%emt 0:00:10]} 16. Ne5 {[%emt 0:00:30]} Nfd7 {[%emt 0:00:21]} 17. Nd3 {[%emt 0:01:35]} e5 {[%emt 0:00:03]} 18. Nb4 {[%emt 0:05:33]} exd4 {[%emt 0:01:04]} 19. exd4 {[%emt 0:00:01]} Nf6 {[%emt 0:07:03]} 20. Bf4 {[%emt 0:01:50]} a5 {[%emt 0:00:26]} 21. Nd3 {[%emt 0:01:38]} Ne4 {[%emt 0:02:41]} 22. Ne5 {[%emt 0:01:08]} Qf6 {[%emt 0:03:31]} 23. Be3 {[%emt 0:01:14]} Qe6 {[%emt 0:01:22]} 24. Nxe4 {[%emt 0:01:20]} dxe4 {[%emt 0:00:00]} 25. Rc7 {[%emt 0:00:37]} Bd5 {[%emt 0:00:18]} 26. Qd2 {[%emt 0:00:09]} f6 {[%emt 0:00:51]} 27. Nc4 {[%emt 0:00:13]} Rf7 {[%emt 0:00:32]} 28. Rxf7 {[%emt 0:00:05]} Kxf7 {[%emt 0:00:02]} 29. Rc1 {[%emt 0:00:06]} Nd7 {[%emt 0:00:12]} 30. Bf4 {[%emt 0:00:02]} Bf8 {[%emt 0:00:20]} 31. Ne3 {[%emt 0:00:02]} Kg7 {[%emt 0:01:14]} 32. Nxd5 {[%emt 0:00:16]} Qxd5 {[%emt 0:00:06]} 33. Rc7 Rd8 {[%emt 0:00:09]} 34. Bc4 Qh5 {[%emt 0:03:05]} 35. g4 {[%emt 0:01:02]} Qxh3 {[%emt 0:00:00]} 36. Be6 {[%emt 0:00:10]} Kh8 {[%emt 0:00:00]} 37. Rxd7 {[%emt 0:00:00]} Re8 {[%emt 0:00:00]} 38. d5 {[%emt 0:00:00]} Bc5 {[%emt 0:00:00]} 39. Qb2 {[%emt 0:00:18]} Rxe6 {[%emt 0:00:00]} 40. dxe6 {[%emt 0:00:07]} Qxg4+ {[%emt 0:01:00]} 41. Kf1 {[%emt 0:00:25]} Qh3+ {[%emt 0:00:10]} 42. Ke1 {[%emt 0:00:10]} Bb4+ {[%emt 0:00:00]} 43. Kd1 {[%emt 0:00:00]} Qf3+ {[%emt 0:00:00]} 44. Qe2 {[%emt 0:00:08]} Qh1+ {[%emt 0:00:00]} 45. Kc2 {[%emt 0:00:06]} Qa1 {[%emt 0:00:00]} 46. Bc1 {[%emt 0:00:14]} Qxa2+ {[%emt 0:00:00]} 47. Bb2 {[%emt 0:00:10]} Ba3 {[%emt 0:00:09]} 48. Rd8+ {[%emt 0:00:09]} Kg7 {[%emt 0:00:01]} 49. Rd7+ {[%emt 0:00:02]} Kg8 {[%emt 0:01:10]} 50. Kc3 {[%emt 0:00:17]} Bb4+ {[%emt 0:00:00]} 51. Kd4 {[%emt 0:00:11]} Bc5+ {[%emt 0:00:00]} 52. Kc3 {[%emt 0:00:03]} Bb4+ {[%emt 0:00:00]} 53. Kc2 {[%emt 0:00:30]} Ba3 54. Rd8+ {[%emt 0:00:00]} Kg7 {[%emt 0:00:50]} 55. Kc3 {[%emt 0:00:20]} Bb4+ {[%emt 0:00:10]} 56. Kd4 {[%emt 0:00:00]} Ba3 {[%emt 0:00:10]} 57. Rd7+ {[%emt 0:00:02]} Kg8 {[%emt 0:00:10]} 58. Qc4 {[%emt 0:00:15]} Bxb2+ {[%emt 0:00:00]} 59. Kd5 {[%emt 0:00:03]} Qxc4+ 60. Kxc4 {[%emt 0:00:01]} Kf8 {[%emt 0:00:00]} 61. Kd5 {[%emt 0:00:10]} Ba3 {[%emt 0:00:00]} 62. Rxh7 {[%emt 0:00:25]} Ke8 {[%emt 0:00:24]} 63. Kxe4 {[%emt 0:00:08]} Bc5 {[%emt 0:00:03]} 64. f3 {[%emt 0:00:11]} a4 {[%emt 0:00:00]} 65. Ra7 {[%emt 0:00:04]} a3 {[%emt 0:00:02]} 66. Kd5 {[%emt 0:00:08]} Kf8 {[%emt 0:00:36]} 67. f4 {[%emt 0:00:21]} Bb4 {[%emt 0:00:02]} 68. Ra6 {[%emt 0:00:09]} Bc5 {[%emt 0:00:13]} 69. Ra8+ {[%emt 0:00:05]} Ke7 {[%emt 0:00:00]} 70. Ra7+ {[%emt 0:00:02]} Kf8 {[%emt 0:00:02]} 71. Kc4 {[%emt 0:00:18]} Ke8 {[%emt 0:00:09]} 72. Kb3 {[%emt 0:00:12]} Bd6 {[%emt 0:00:01]} 73. Rb7 {[%emt 0:00:08]} Bc5 {[%emt 0:00:16]} 74. Rg7 {[%emt 0:00:14]} f5 {[%emt 0:00:07]} 75. Rxg6 {[%emt 0:00:09]} Ke7 {[%emt 0:00:01]} 76. Ka2 {[%emt 0:00:12]} Bd6 {[%emt 0:00:01]} 77. Kb3 {[%emt 0:00:07]} Bc5 {[%emt 0:00:01]} 78. Rh6 {[%emt 0:00:14]} Bd6 {[%emt 0:00:03]} 79. Rg6 {[%emt 0:00:09]} Bc5 {[%emt 0:00:02]} 80. Rh6 {[%emt 0:00:11]} Bd6 {[%emt 0:00:02]} 81. Rg6 {[%emt 0:00:09]} Bc5 {[%emt 0:00:01]} 82. Rh6 {[%emt 0:00:11]} Bd6 {[%emt 0:00:02]} 83. Rg6 {[%emt 0:00:08]} 1/2-1/2